bitfinex/quotes_BTCUSD_20230117
["timestamp","ask_amount","ask_price","bid_price","bid_amount"]
[1673981493503,0.30214773,21368.0,21367.0,0.22755957]
[1673981493849,0.232091,21368.0,21367.0,0.22755957]
[1673981494026,0.092,21368.0,21367.0,0.22755957]
[1673981494801,0.232091,21368.0,21367.0,0.22755957]
[1673981495099,0.44223873,21368.0,21367.0,0.22755957]
[1673981495323,0.44222885,21368.0,21367.0,0.22755957]
[1673981497190,0.4422191,21368.0,21367.0,0.22767132]
[1673981497448,0.23207137,21368.0,21367.0,0.22755957]
[1673981497943,0.4422191,21368.0,21367.0,0.22755957]
[1673981497945,0.30214773,21368.0,21367.0,0.22755957]
[1673981498205,0.092,21368.0,21367.0,0.22755957]
[1673981499041,0.092,21368.0,21367.0,0.51340638]
[1673981499257,0.092,21368.0,21367.0,0.83406338]
[1673981499781,24.53986466,21369.0,21367.0,0.83406338]
[1673981500044,24.53986466,21369.0,21368.0,0.98127866]
[1673981500323,24.53986466,21369.0,21368.0,1.13127866]
[1673981500839,24.53986466,21369.0,21368.0,0.85967866]
[1673981500840,24.53974975,21369.0,21368.0,0.85967866]
[1673981501831,24.54874975,21369.0,21368.0,0.86667866]
[1673981502085,24.53974975,21369.0,21368.0,0.85967866]
[1673981502338,24.54274975,21369.0,21368.0,0.86567866]
[1673981502599,24.53974975,21369.0,21368.0,0.85967866]
[1673981502859,24.54874975,21369.0,21368.0,0.86667866]
[1673981503113,24.53974975,21369.0,21368.0,0.85967866]
[1673981503366,24.54274975,21369.0,21368.0,0.86567866]
[1673981503631,24.54274975,21369.0,21368.0,0.98837866]
[1673981503887,24.54274975,21369.0,21368.0,0.89157866]
[1673981504180,24.54274975,21369.0,21368.0,0.88557866]
[1673981504409,24.54874975,21369.0,21368.0,0.89257866]
[1673981504920,24.55174975,21369.0,21368.0,0.89857866]
[1673981505177,24.54274975,21369.0,21368.0,0.89157866]
[1673981505454,24.55174975,21369.0,21368.0,0.89857866]
[1673981505691,24.53974975,21369.0,21368.0,1.48557866]
[1673981505943,24.53974975,21369.0,21368.0,0.88557866]
[1673981506207,24.53974975,21369.0,21368.0,0.81137866]
[1673981507508,24.54774975,21369.0,21368.0,0.81137866]
[1673981508301,24.54774975,21369.0,21368.0,0.88567866]
[1673981508571,24.55574975,21369.0,21368.0,0.89267866]
[1673981508847,24.53974975,21369.0,21368.0,0.88567866]
[1673981509576,24.54774975,21369.0,21368.0,0.89267866]
[1673981510094,24.53974975,21369.0,21368.0,0.88567866]
[1673981511643,24.54774975,21369.0,21368.0,1.47537866]
[1673981511905,23.62665189,21369.0,21368.0,1.48237866]
[1673981512163,23.62665189,21369.0,21368.0,1.61850166]
[1673981512935,23.62665189,21369.0,21368.0,2.21850166]
[1673981513296,22.7247872,21369.0,21368.0,1.80918]
[1673981513448,0.01689987,21373.0,21369.0,2.69436155]
[1673981513713,0.0179674,21376.0,21372.0,2.13533997]
[1673981513975,0.0051,21380.0,21373.0,1.76925964]
[1673981514228,0.0051,21380.0,21374.0,1.71720482]
[1673981514582,0.0051,21380.0,21376.0,0.35306]
[1673981515005,0.0051,21380.0,21376.0,0.67383996]
[1673981515260,0.0051,21380.0,21376.0,0.395157]
[1673981515527,0.0051,21380.0,21376.0,0.75394378]
[1673981516308,0.02596783,21377.0,21376.0,0.75394378]
[1673981516560,0.01796783,21377.0,21376.0,0.75394378]
[1673981516813,0.02696783,21377.0,21376.0,0.83544378]
[1673981517115,0.02696783,21377.0,21376.0,0.90284378]
[1673981517116,0.01796783,21377.0,21376.0,0.90284378]
[1673981517335,0.02596783,21377.0,21376.0,0.90984378]
[1673981517618,0.02596783,21377.0,21376.0,0.90284378]
[1673981517914,0.02696783,21377.0,21376.0,0.77363665]
[1673981518170,0.01796783,21377.0,21376.0,1.07363665]
[1673981518432,0.02596783,21377.0,21376.0,0.77363665]
[1673981518961,0.02596783,21377.0,21376.0,0.62363665]
[1673981519221,0.01796783,21377.0,21376.0,0.46773665]
[1673981519484,0.02696783,21377.0,21376.0,0.47473665]
[1673981519776,0.01796783,21377.0,21376.0,0.46773665]
[1673981520039,0.02596783,21377.0,21376.0,0.46786491]
[1673981520291,0.03496783,21377.0,21376.0,0.47486491]
[1673981520547,0.01796783,21377.0,21376.0,0.54236491]
[1673981520801,0.02696783,21377.0,21376.0,0.54923665]
[1673981521342,0.01796783,21377.0,21376.0,0.54236491]
[1673981521345,0.01796783,21377.0,21376.0,0.03444987]
[1673981521346,0.22357783,21377.0,21376.0,0.03444987]
[1673981521607,0.22357783,21377.0,21373.0,0.29294249]
[1673981521608,0.22357783,21377.0,21373.0,0.36217287]
[1673981521861,0.20869378,21377.0,21373.0,0.36217287]
[1673981522134,0.21769378,21377.0,21376.0,0.007]
[1673981522401,0.21769378,21377.0,21373.0,0.36217287]
[1673981522402,0.01796783,21377.0,21373.0,0.36217287]
[1673981522658,0.01796783,21377.0,21376.0,0.21156]
[1673981522659,0.02696783,21377.0,21376.0,0.21156]
[1673981522921,0.02696783,21377.0,21376.0,0.524988]
[1673981522922,0.01796783,21377.0,21376.0,0.524988]
[1673981523186,0.02696783,21377.0,21376.0,0.52511626]
[1673981523707,0.02696783,21377.0,21376.0,0.59951626]
[1673981523708,0.02596783,21377.0,21376.0,0.59951626]
[1673981523960,0.01796783,21377.0,21376.0,0.74951626]
[1673981524220,0.02696783,21377.0,21376.0,0.83101626]
[1673981524479,0.02696783,21377.0,21376.0,2.30315489]
[1673981524744,0.02696783,21377.0,21376.0,2.74029215]
[1673981525093,0.02696783,21377.0,21376.0,2.30315489]
[1673981525532,0.02696783,21377.0,21376.0,1.5348532]
[1673981525814,0.01796783,21378.0,21377.0,0.36374673]
[1673981526072,0.01796783,21378.0,21377.0,1.42981199]
[1673981526341,0.01796783,21378.0,21377.0,2.33871368]
[1673981527131,0.01896783,21378.0,21377.0,2.33971368]
[1673981527392,0.20969378,21378.0,21377.0,1.14340877]
[1673981527685,0.01896783,21378.0,21377.0,0.78570877]
[1673981528203,0.01796783,21378.0,21377.0,0.85890877]
[1673981528738,0.01796783,21378.0,21377.0,0.92520384]
[1673981529230,0.01796783,21378.0,21377.0,1.13420384]
[1673981530015,0.01796783,21378.0,21377.0,1.63262011]
[1673981530284,0.01796783,21378.0,21377.0,2.47800978]
[1673981530801,0.01796783,21378.0,21377.0,2.04404011]
[1673981531061,0.0051,21380.0,21378.0,0.15415674]
[1673981531331,0.000134,21384.0,21379.0,1.38967296]
[1673981531592,0.000134,21384.0,21380.0,1.95247296]
[1673981531850,0.01311247,21386.0,21385.0,0.20475515]
[1673981532109,0.01311247,21386.0,21385.0,0.8569351]
[1673981532364,0.01311247,21386.0,21385.0,0.98057679]
[1673981532616,0.01311247,21386.0,21385.0,0.32048815]
[1673981533156,0.01311247,21386.0,21385.0,1.33999984]
[1673981533422,0.01311247,21386.0,21385.0,1.54434316]
[1673981533685,0.01311247,21386.0,21385.0,2.39964316]
[1673981533953,0.01311247,21386.0,21385.0,2.54964316]
[1673981534256,0.01311247,21386.0,21385.0,1.32461836]
[1673981534512,0.01311247,21386.0,21385.0,1.98553071]
[1673981534772,0.01311247,21386.0,21385.0,2.38290645]
[1673981535035,0.01311247,21386.0,21385.0,2.76857185]
[1673981535304,0.01311247,21386.0,21385.0,2.3358774]
[1673981535873,0.00956936,21391.0,21385.0,2.3358774]
[1673981535874,0.00956936,21391.0,21387.0,0.21442356]
[1673981536129,0.00956936,21391.0,21387.0,2.19922091]
[1673981536382,0.00956936,21391.0,21387.0,2.85814996]
[1673981536640,0.00956936,21391.0,21387.0,0.74103356]
[1673981537143,0.00956936,21391.0,21387.0,0.41407356]
[1673981537144,0.19768936,21391.0,21387.0,0.41407356]
[1673981537148,0.19768936,21391.0,21387.0,0.38367356]
[1673981537408,0.00956936,21391.0,21387.0,0.38367356]
[1673981537676,0.00956936,21391.0,21387.0,0.50557356]
[1673981537928,0.00956936,21391.0,21387.0,0.65557356]
[1673981538188,0.00956936,21391.0,21387.0,1.03968418]
[1673981538446,0.00956936,21391.0,21387.0,0.88968418]
[1673981538710,0.00956936,21391.0,21387.0,0.89818418]
[1673981538966,0.00956936,21391.0,21387.0,0.88968418]
[1673981539484,0.00956936,21391.0,21387.0,0.76778418]
[1673981539748,0.32561,21388.0,21387.0,0.76778418]
[1673981540005,0.32561,21388.0,21387.0,0.48497418]
[1673981540267,0.63783595,21388.0,21380.0,0.43846656]
[1673981540524,0.63783595,21388.0,21378.0,0.12665674]
[1673981540525,0.19072595,21387.0,21382.0,0.06974252]
[1673981541065,0.19072595,21387.0,21384.0,0.07436843]
[1673981541069,0.19072595,21387.0,21386.0,0.06729982]
[1673981541332,0.128,21388.0,21386.0,0.06729982]
[1673981541852,0.128,21388.0,21386.0,0.25018677]
[1673981542122,0.12,21388.0,21387.0,0.742265]
[1673981542383,0.12,21388.0,21387.0,0.74239319]
[1673981542926,0.12,21388.0,21387.0,0.44239319]
[1673981543188,0.31072595,21388.0,21387.0,0.320365]
[1673981543454,0.12,21388.0,21386.0,0.06729982]
[1673981543989,0.129,21388.0,21386.0,0.06729982]
[1673981544245,0.138,21388.0,21386.0,0.06729982]
[1673981544530,0.138,21388.0,21387.0,0.91899488]
[1673981545033,0.138,21388.0,21387.0,0.75029319]
[1673981545549,0.12,21388.0,21387.0,0.90029319]
[1673981545825,0.129,21388.0,21387.0,0.90029319]
[1673981546136,0.129,21388.0,21387.0,0.44179319]
[1673981546348,0.138,21388.0,21387.0,0.320365]
[1673981546606,0.12,21388.0,21387.0,0.320365]
[1673981546852,0.129,21388.0,21387.0,0.320365]
[1673981547121,0.32561,21388.0,21387.0,0.320365]
[1673981547420,0.12,21388.0,21386.0,0.06729982]
[1673981547637,0.12,21388.0,21387.0,0.320365]
[1673981548148,0.12,21388.0,21387.0,0.470365]
[1673981548423,0.12,21388.0,21387.0,0.54202822]
[1673981548718,0.00956936,21391.0,21388.0,0.17044054]
[1673981548943,0.00956936,21391.0,21389.0,0.068427]
[1673981549203,0.00956936,21391.0,21390.0,0.320313]
[1673981549719,0.01756936,21391.0,21389.0,0.06241988]
[1673981549985,0.01756936,21391.0,21390.0,0.320365]
[1673981550243,0.01756936,21391.0,21389.0,0.06241988]
[1673981550759,0.00956936,21391.0,21390.0,0.320365]
[1673981551016,0.00956936,21391.0,21389.0,0.06241988]
[1673981551325,0.01856936,21391.0,21390.0,0.008]
[1673981551815,0.22417936,21391.0,21390.0,0.008]
[1673981552328,0.00956936,21391.0,21389.0,0.06241988]
[1673981552768,0.01756936,21391.0,21389.0,0.07041988]
[1673981552769,0.01756936,21391.0,21389.0,0.07054806]
[1673981553281,0.22317936,21391.0,21390.0,0.320365]
[1673981553501,0.22317936,21391.0,21389.0,0.06241988]
[1673981553502,0.00956936,21391.0,21389.0,0.06241988]
[1673981553724,0.22417936,21391.0,21390.0,0.008]
[1673981553991,0.21517936,21391.0,21389.0,0.06241988]
[1673981554222,0.01756936,21391.0,21389.0,0.07041988]
[1673981554452,0.01756936,21391.0,21388.0,0.02044054]
[1673981554672,0.320365,21390.0,21388.0,0.02044054]
[1673981554891,0.320365,21389.0,21388.0,0.02044054]
[1673981555112,0.52891203,21391.0,21388.0,0.02044054]
[1673981555332,0.65871203,21391.0,21389.0,0.007]
[1673981555556,0.65071203,21391.0,21388.0,0.02044054]
[1673981556541,0.008,21390.0,21388.0,0.02744054]
[1673981556627,0.00956936,21391.0,21388.0,0.09770323]
[1673981557058,0.00956936,21391.0,21389.0,0.320365]
[1673981557279,0.00956936,21391.0,21390.0,0.272947]
[1673981557487,0.01756936,21391.0,21390.0,0.272947]
[1673981557868,0.01756936,21391.0,21390.0,0.068387]
[1673981557869,0.00956936,21391.0,21390.0,0.068387]
[1673981558156,0.01756936,21391.0,21389.0,0.08906368]
[1673981559196,0.01756936,21391.0,21389.0,0.08206368]
[1673981559197,0.00956936,21391.0,21389.0,0.08206368]
[1673981559455,0.00956936,21391.0,21388.0,0.02044054]
[1673981559456,0.441665,21390.0,21388.0,0.02044054]
[1673981559709,0.320365,21389.0,21386.0,0.07553884]
[1673981559951,0.320365,21388.0,21386.0,0.07553884]
[1673981560195,0.65791804,21390.0,21386.0,0.07553884]
[1673981560516,0.66691804,21390.0,21388.0,0.007]
[1673981560779,0.65791804,21390.0,21386.0,0.25842579]
[1673981561032,0.008,21388.0,21386.0,0.08253884]
[1673981561613,0.008,21388.0,21386.0,0.08266704]
[1673981562121,0.008,21388.0,21387.0,0.320365]
[1673981562654,0.00956936,21391.0,21387.0,0.320365]
[1673981562934,0.009,21390.0,21388.0,0.007]
[1673981563193,0.38690531,21391.0,21381.0,0.67937185]
[1673981563194,0.1222,21389.0,21381.0,0.67937185]
[1673981563448,0.1222,21389.0,21387.0,0.006]
[1673981563449,0.87742595,21388.0,21387.0,0.006]
[1673981563703,0.87742595,21388.0,21386.0,0.07865443]
[1673981563704,0.009,21388.0,21386.0,0.07865443]
[1673981564315,0.1224,21389.0,21382.0,0.32025969]
[1673981564588,0.26572595,21388.0,21383.0,0.06882668]
[1673981564845,0.26572595,21388.0,21383.0,0.25171363]
[1673981565106,0.26572595,21388.0,21385.0,0.06085537]
[1673981565363,0.80339667,21391.0,21386.0,0.0001282]
[1673981565626,0.009,21388.0,21387.0,0.18288695]
[1673981565881,0.009,21388.0,21386.0,0.0001282]
[1673981566141,0.009,21388.0,21387.0,0.07139242]
[1673981566400,0.49438667,21391.0,21387.0,0.39175742]
[1673981566401,0.00956936,21391.0,21387.0,0.39175742]
[1673981566681,0.00956936,21391.0,21388.0,0.25131595]
[1673981567153,0.00956936,21391.0,21389.0,0.320331]
[1673981567154,0.01156936,21391.0,21389.0,0.320331]
[1673981567155,0.00956936,21391.0,21389.0,0.32045918]
[1673981567414,0.00956936,21391.0,21387.0,0.07339242]
[1673981567667,0.20029531,21391.0,21387.0,0.07339242]
[1673981568206,0.20029531,21391.0,21387.0,0.07139242]
[1673981568431,0.28629531,21391.0,21387.0,0.07139242]
[1673981568696,0.57919361,21391.0,21387.0,0.07139242]
[1673981568955,0.320365,21390.0,21387.0,0.07339242]
[1673981569223,0.14007137,21390.0,21387.0,0.002]
[1673981569487,0.14007137,21390.0,21384.0,0.06843109]
[1673981569775,0.19072595,21389.0,21384.0,0.06843109]
[1673981570039,0.19072595,21388.0,21384.0,0.06843109]
[1673981570297,0.14007137,21390.0,21384.0,0.06843109]
[1673981570298,0.19072595,21387.0,21384.0,0.06843109]
[1673981571343,0.320365,21386.0,21380.0,1.31440844]
[1673981571600,0.19072595,21385.0,21380.0,0.64694933]
[1673981571862,0.19072595,21385.0,21382.0,0.06319251]
[1673981572344,1.11296924,21387.0,21384.0,0.005]
[1673981572347,1.10396924,21387.0,21382.0,0.06319251]
[1673981572605,1.10396924,21387.0,21382.0,0.18288695]
[1673981572606,0.008,21385.0,21382.0,0.18288695]
[1673981572866,0.008,21385.0,21380.0,0.005]
[1673981572867,0.19872595,21385.0,21380.0,0.005]
[1673981573134,0.19072595,21384.0,21382.0,0.005]
[1673981573444,0.011,21385.0,21382.0,0.005]
[1673981573653,0.42939796,21385.0,21382.0,0.005]
[1673981574198,0.15,21384.0,21379.0,0.00339689]
[1673981574447,0.34272595,21384.0,21382.0,0.005]
[1673981574718,0.15,21384.0,21379.0,0.32365658]
[1673981575005,0.15,21384.0,21379.0,0.00339689]
[1673981575006,1.03372595,21384.0,21379.0,0.00339689]
[1673981575252,1.04172595,21384.0,21379.0,0.19528384]
[1673981575774,0.88372595,21384.0,21380.0,0.0774833]
[1673981576273,0.89272595,21384.0,21380.0,0.0774833]
[1673981576824,0.702,21384.0,21380.0,0.0774833]
[1673981577392,0.15,21383.0,21380.0,0.0774833]
[1673981577660,0.15,21383.0,21379.0,0.00339689]
[1673981577903,0.34072595,21383.0,21380.0,0.005]
[1673981578153,0.695,21384.0,21380.0,0.18788695]
[1673981578405,0.695,21384.0,21381.0,0.00012823]
[1673981578670,0.695,21384.0,21381.0,0.18301518]
[1673981578929,0.693,21384.0,21381.0,0.0828018]
[1673981579176,0.695,21384.0,21381.0,0.0828018]
[1673981579686,0.695,21384.0,21381.0,0.08267357]
[1673981580019,0.693,21384.0,21382.0,0.00012822]
[1673981580183,0.693,21384.0,21381.0,0.09167357]
[1673981580184,0.702,21384.0,21381.0,0.09167357]
[1673981581481,0.702,21384.0,21382.0,0.00244294]
[1673981581738,0.702,21384.0,21381.0,0.009]
[1673981581994,0.81171288,21383.0,21381.0,0.009]
[1673981582263,0.470365,21382.0,21381.0,0.009]
[1673981582561,0.465365,21382.0,21381.0,0.009]
[1673981582808,0.49134788,21383.0,21381.0,0.009]
[1673981583312,0.49134788,21383.0,21379.0,0.00339689]
[1673981583564,0.009,21382.0,21381.0,0.009]
[1673981583891,0.49078482,21383.0,21379.0,0.00339689]
[1673981584061,0.49978482,21383.0,21381.0,0.009]
[1673981584313,0.49078482,21383.0,21379.0,0.00339689]
[1673981584564,0.68951077,21383.0,21379.0,0.01239689]
[1673981585345,0.83151077,21383.0,21380.0,0.00024398]
[1673981585608,0.64078482,21383.0,21379.0,0.00339689]
[1673981585861,0.83151077,21383.0,21379.0,0.00339689]
[1673981586117,0.49978482,21383.0,21379.0,0.19428384]
[1673981586339,0.69051077,21383.0,21380.0,0.00024398]
[1673981586585,0.49978482,21383.0,21379.0,0.01139689]
[1673981586837,0.69051077,21383.0,21379.0,0.01139689]
[1673981588125,0.15,21382.0,21379.0,0.01139689]
[1673981588864,0.34018848,21382.0,21379.0,0.00339689]
[1673981589108,0.15,21382.0,21379.0,0.01139689]
[1673981589370,0.320365,21381.0,21379.0,0.00339689]
[1673981589634,0.159,21382.0,21379.0,0.01139689]
[1673981589888,0.77154883,21381.0,21379.0,0.01139689]
[1673981590141,0.77154883,21381.0,21379.0,0.00839689]
[1673981590142,0.320365,21380.0,21379.0,0.00839689]
[1673981590403,0.470365,21380.0,21379.0,0.00339689]
[1673981590679,0.470365,21380.0,21379.0,0.01139689]
[1673981590943,0.470365,21380.0,21378.0,0.00352658]
[1673981590944,1.06914583,21380.0,21378.0,0.00352658]
[1673981591199,0.15,21378.0,21374.0,0.07780234]
[1673981591558,0.51109095,21377.0,21373.0,0.02704249]
[1673981591717,0.320365,21377.0,21373.0,0.02704249]
[1673981591973,0.1224,21374.0,21373.0,0.02704249]
[1673981592241,0.63349095,21374.0,21373.0,0.02704249]
[1673981592504,0.442765,21374.0,21373.0,0.02704249]
[1673981593046,0.442765,21374.0,21373.0,0.02804249]
[1673981593329,0.442765,21374.0,21373.0,0.02704249]
[1673981593587,0.15,21373.0,21371.0,0.00352658]
[1673981593835,0.320365,21372.0,21371.0,0.00352658]
[1673981594344,0.57458614,21373.0,21371.0,0.00352658]
[1673981595181,0.320365,21372.0,21371.0,0.00352658]
[1673981595734,0.320365,21372.0,21370.0,0.00387221]
[1673981595735,0.6730495,21371.0,21370.0,0.00387221]
[1673981595996,1.1158145,21371.0,21370.0,0.00387221]
[1673981596256,0.34841,21374.0,21367.0,0.23040122]
[1673981596517,0.98327342,21374.0,21368.0,0.18288695]
[1673981596777,0.083,21372.0,21368.0,0.18288695]
[1673981597029,0.19072595,21372.0,21367.0,0.23040122]
[1673981597305,0.083,21371.0,21367.0,0.23040122]
[1673981597580,0.27372595,21371.0,21367.0,0.23040122]
[1673981597844,0.27372595,21371.0,21368.0,0.00033197]
[1673981598153,0.083,21371.0,21367.0,0.23040122]
[1673981598432,0.083,21371.0,21368.0,0.07441696]
[1673981598688,0.083,21371.0,21369.0,0.32069695]
[1673981598981,0.47233747,21374.0,21370.0,0.068807]
[1673981599255,0.008,21371.0,21368.0,0.07441696]
[1673981599604,0.1213,21372.0,21370.0,0.0275027]
[1673981599876,0.008,21371.0,21370.0,0.0275027]
[1673981600130,0.2724,21373.0,21370.0,0.0275027]
[1673981600392,0.008,21371.0,21370.0,0.0275027]
[1673981600668,0.2724,21373.0,21370.0,0.0275027]
[1673981600930,0.072,21372.0,21370.0,0.0285027]
[1673981601708,0.15,21373.0,21370.0,0.0275027]
[1673981601965,0.15,21371.0,21370.0,0.0275027]
[1673981602230,0.470365,21371.0,21370.0,0.0275027]
[1673981602488,0.15,21371.0,21370.0,0.0275027]
[1673981603002,0.15,21371.0,21370.0,0.0285027]
[1673981603336,0.15,21371.0,21370.0,0.0275027]
[1673981603526,0.542365,21371.0,21370.0,0.0285027]
[1673981603776,0.664765,21371.0,21370.0,0.0285027]
[1673981604029,0.964765,21371.0,21370.0,0.0285027]
[1673981604304,0.664765,21371.0,21370.0,0.0285027]
[1673981604574,0.964765,21371.0,21370.0,0.0285027]
[1673981604819,0.65198466,21370.0,21367.0,0.23040122]
[1673981605089,0.442765,21369.0,21367.0,0.23040122]
[1673981605339,0.15,21371.0,21367.0,0.23040122]
[1673981605606,0.9316,21371.0,21370.0,0.001]
[1673981605861,0.8586,21371.0,21367.0,0.41328817]
[1673981606113,0.8586,21371.0,21367.0,0.23040122]
[1673981606376,1.04932595,21371.0,21367.0,0.23040122]
[1673981606893,0.320365,21370.0,21367.0,0.23040122]
[1673981607150,1.04932595,21371.0,21367.0,0.23040122]
[1673981607411,0.8586,21371.0,21367.0,0.23040122]
[1673981607925,1.00375064,21370.0,21367.0,0.23040122]
[1673981608201,0.592465,21369.0,21367.0,0.23540122]
[1673981608467,0.320365,21368.0,21367.0,0.23540122]
[1673981608704,0.15,21368.0,21367.0,0.23540122]
[1673981608956,0.15,21368.0,21367.0,0.23040122]
[1673981609224,0.15,21368.0,21367.0,0.23740122]
[1673981609478,0.15,21368.0,21367.0,0.23040122]
[1673981609733,0.152,21368.0,21367.0,0.23540122]
[1673981610769,0.002,21368.0,21367.0,0.2357332]
[1673981611081,0.002,21368.0,21367.0,0.23540122]
[1673981612888,0.20761,21368.0,21367.0,0.23540122]
[1673981613109,0.002,21368.0,21367.0,0.23540122]
[1673981614178,0.009,21371.0,21368.0,0.00066084]
[1673981614444,0.009,21371.0,21369.0,0.50325195]
[1673981614707,0.009,21371.0,21370.0,0.068807]
[1673981615051,0.15,21376.0,21370.0,0.068807]
[1673981615316,0.74210651,21377.0,21371.0,0.58119503]
[1673981615575,0.74210651,21377.0,21372.0,0.25167995]
[1673981615843,0.74210651,21377.0,21373.0,0.18288695]
[1673981616365,0.1224,21376.0,21371.0,0.07797508]
[1673981616620,0.34072595,21375.0,21371.0,0.07897508]
[1673981616916,0.34072595,21375.0,21371.0,0.07797508]
[1673981617170,0.34072595,21375.0,21373.0,0.001]
[1673981617431,0.15,21375.0,21373.0,0.001]
[1673981617977,0.15,21375.0,21371.0,0.07797508]
[1673981618257,0.2724,21376.0,21371.0,0.07897508]
[1673981618258,0.3494,21376.0,21371.0,0.07897508]
[1673981618520,0.3494,21376.0,21372.0,0.0003319]
[1673981618784,0.077,21375.0,21373.0,0.001]
[1673981619285,0.2724,21376.0,21372.0,0.18321885]
[1673981619286,0.077,21375.0,21371.0,0.07897508]
[1673981619802,0.38891651,21377.0,21371.0,0.26086203]
[1673981620061,0.077,21376.0,21372.0,0.50425195]
[1673981620319,0.077,21376.0,21373.0,0.06874]
[1673981620573,0.077,21376.0,21371.0,0.07797508]
[1673981620574,0.077,21376.0,21374.0,0.320335]
[1673981620834,0.077,21376.0,21371.0,0.45778203]
[1673981621095,0.26772595,21376.0,21371.0,0.07797508]
[1673981621354,0.26772595,21376.0,21371.0,0.001]
[1673981621355,0.82636581,21375.0,21371.0,0.001]
[1673981621654,0.74936581,21375.0,21368.0,0.08081374]
[1673981621875,0.19072595,21374.0,21368.0,0.27825374]
[1673981622131,0.55863986,21375.0,21370.0,0.06029355]
[1673981622387,1.69572,21378.0,21374.0,0.07078897]
[1673981622388,0.002,21376.0,21374.0,0.07078897]
[1673981622644,0.002,21376.0,21375.0,0.320365]
[1673981622947,0.6863,21378.0,21375.0,0.320365]
[1673981623149,0.6863,21378.0,21376.0,0.068682]
[1673981623400,0.6863,21378.0,21374.0,0.07078897]
[1673981623671,0.008,21375.0,21374.0,0.25367592]
[1673981623940,0.008,21375.0,21374.0,0.07078897]
[1673981624240,0.008,21375.0,21374.0,0.39115397]
[1673981624501,0.88422,21378.0,21374.0,0.39115397]
[1673981624752,0.95822,21378.0,21375.0,0.002]
[1673981625027,0.6863,21378.0,21374.0,0.25367592]
[1673981625294,0.009,21375.0,21374.0,0.08478897]
[1673981625771,0.88423,21378.0,21374.0,0.07078897]
[1673981625775,0.88623,21378.0,21374.0,0.07378897]
[1673981626049,0.002,21378.0,21375.0,0.50325195]
[1673981626309,0.002,21378.0,21376.0,0.320365]
[1673981626564,0.002,21378.0,21377.0,0.06866]
[1673981627326,0.01645358,21380.0,21377.0,0.06866]
[1673981627583,0.01645358,21380.0,21378.0,0.50321995]
[1673981627848,0.01645358,21380.0,21379.0,0.06865]
[1673981628111,0.01645358,21380.0,21379.0,0.03865]
[1673981628901,0.01845358,21380.0,21379.0,0.04165]
[1673981629625,0.01845358,21380.0,21379.0,0.0420938]
[1673981629877,0.01845358,21380.0,21379.0,0.1920938]
[1673981630686,0.01845358,21380.0,21379.0,0.04165]
[1673981631473,0.01845358,21380.0,21379.0,0.46355]
[1673981631729,0.01845358,21380.0,21379.0,0.61355]
[1673981632357,0.01845358,21380.0,21379.0,0.31355]
[1673981634422,0.01585168,21384.0,21380.0,0.06521966]
[1673981634687,0.01585168,21384.0,21381.0,0.320286]
[1673981634907,0.01585168,21384.0,21382.0,0.038633]
[1673981635169,0.01585168,21384.0,21380.0,0.06521966]
[1673981635657,0.01585168,21384.0,21381.0,0.320388]
[1673981635879,0.01585168,21384.0,21382.0,0.038531]
[1673981636133,0.09185168,21384.0,21382.0,0.001]
[1673981636398,0.09185168,21384.0,21383.0,0.320388]
[1673981637193,0.02385168,21384.0,21383.0,0.320388]
[1673981637462,0.01585168,21384.0,21383.0,0.320388]
[1673981637715,0.02385168,21384.0,21383.0,0.335388]
[1673981643035,0.02385168,21384.0,21383.0,0.01512292]
[1673981643835,0.02385168,21384.0,21383.0,0.33551092]
[1673981644097,0.02385168,21384.0,21383.0,0.015]
[1673981645885,0.34423968,21384.0,21383.0,0.015]
[1673981646666,0.34423968,21384.0,21380.0,0.00624872]
[1673981646931,0.34423968,21384.0,21375.0,0.07404914]
[1673981646932,0.1213,21381.0,21375.0,0.07404914]
[1673981647185,0.51111395,21380.0,21375.0,0.07404914]
[1673981647443,0.19072595,21379.0,21375.0,0.07404914]
[1673981647697,0.19072595,21378.0,21375.0,0.07404914]
[1673981647968,0.19072595,21378.0,21376.0,0.00234258]
[1673981648238,0.2724,21380.0,21375.0,0.07404914]
[1673981648488,0.31312595,21380.0,21375.0,0.25693609]
[1673981648783,0.46312595,21380.0,21379.0,0.3]
[1673981649007,0.98462859,21380.0,21369.0,1.01567185]
[1673981649269,0.98462859,21380.0,21371.0,0.06070885]
[1673981649270,0.1218,21377.0,21371.0,0.06070885]
[1673981649539,0.19072595,21376.0,21371.0,0.19173]
[1673981650901,0.081,21380.0,21374.0,1.07720169]
[1673981650908,0.01585168,21384.0,21376.0,0.23119256]
[1673981650913,0.01585168,21384.0,21379.0,0.72638]
[1673981650915,0.01585168,21384.0,21379.0,1.35303595]
[1673981650917,0.01585168,21384.0,21379.0,0.72638]
[1673981651110,0.01585168,21384.0,21383.0,0.99245924]
[1673981651343,0.01585168,21384.0,21383.0,2.28742]
[1673981651521,0.01585168,21384.0,21383.0,2.65784016]
[1673981651793,0.01585168,21384.0,21383.0,2.80784016]
[1673981652039,0.01585168,21384.0,21383.0,2.9153814]
[1673981652278,0.01585168,21384.0,21383.0,3.4774869]
[1673981652279,0.02385168,21384.0,21383.0,3.4774869]
[1673981652535,0.02385168,21384.0,21383.0,4.22704614]
[1673981652776,0.02385168,21384.0,21383.0,4.70424783]
[1673981653021,1.68e-06,21384.0,21383.0,5.85320086]
[1673981653266,1.68e-06,21384.0,21383.0,6.37796558]
[1673981653531,1.68e-06,21384.0,21383.0,5.3745854]
[1673981653775,1.68e-06,21384.0,21383.0,6.9745854]
[1673981654023,1.68e-06,21384.0,21383.0,6.4528529]
[1673981654294,0.35026935,21406.0,21392.0,0.05149126]
[1673981654533,0.7422,21402.0,21395.0,0.1218]
[1673981654779,0.7422,21402.0,21394.0,0.42910826]
[1673981654780,0.1218,21395.0,21394.0,0.42910826]
[1673981655019,0.1218,21395.0,21393.0,0.1212]
[1673981655263,0.1218,21395.0,21394.0,0.320388]
[1673981655997,0.1118,21395.0,21394.0,0.320388]
[1673981656235,1.04898,21401.0,21396.0,0.08233019]
[1673981656236,0.8596,21401.0,21396.0,0.08233019]
[1673981656488,0.8596,21401.0,21397.0,0.18288695]
[1673981656990,0.8596,21401.0,21398.0,0.00033374]
[1673981656991,0.7372,21401.0,21398.0,0.00033374]
[1673981657235,0.1214,21403.0,21398.0,0.18288695]
[1673981657481,0.1214,21403.0,21399.0,0.20047266]
[1673981658090,0.075,21401.0,21399.0,0.20047266]
[1673981658321,0.1214,21403.0,21399.0,0.01758571]